[Event "*** Titled Tuesday Blitz"]
[Site "Chess.com"]
[Date "2020.04.14"]
[Round "5"]
[White "StockholmMissile"]
[Black "albano87"]
[Result "0-1"]
[WhiteElo "2404"]
[BlackElo "2186"]
[TimeControl "180+1"]
[EndTime "10:51:37 PDT"]
[Termination "albano87 won by checkmate"]

1. d4 {[%clk 0:03:00.9]} 1... d5 {[%clk 0:02:52.2]} 2. c4 {[%clk 0:03:01]} 2...
e6 {[%clk 0:02:45.6]} 3. Nf3 {[%clk 0:03:00.9]} 3... Nf6 {[%clk 0:02:45.4]} 4.
Bg5 {[%clk 0:03:00.8]} 4... Be7 {[%clk 0:02:44.9]} 5. e3 {[%clk 0:03:00.5]} 5...
O-O {[%clk 0:02:39.1]} 6. Qc2 {[%clk 0:03:00.1]} 6... b6 {[%clk 0:02:37.2]} 7.
cxd5 {[%clk 0:02:54.5]} 7... exd5 {[%clk 0:02:35.3]} 8. Bd3 {[%clk 0:02:53.7]}
8... Nbd7 {[%clk 0:02:35]} 9. O-O {[%clk 0:02:49]} 9... Bb7 {[%clk 0:02:29.2]}
10. Nc3 {[%clk 0:02:49]} 10... c5 {[%clk 0:02:26]} 11. Rfd1 {[%clk 0:02:48.3]}
11... g6 {[%clk 0:02:22]} 12. Rac1 {[%clk 0:02:44]} 12... a6 {[%clk 0:01:55]}
13. h3 {[%clk 0:02:43.2]} 13... c4 {[%clk 0:01:54.3]} 14. Bf1 {[%clk 0:02:42.1]}
14... b5 {[%clk 0:01:51.5]} 15. a3 {[%clk 0:02:42.3]} 15... Rc8 {[%clk
0:01:36.9]} 16. Ne5 {[%clk 0:02:38]} 16... Ne4 {[%clk 0:01:26.1]} 17. Bxe7
{[%clk 0:02:30.6]} 17... Qxe7 {[%clk 0:01:27]} 18. Nxd7 {[%clk 0:02:25.1]} 18...
Qxd7 {[%clk 0:01:27.9]} 19. f3 {[%clk 0:02:00.5]} 19... Nxc3 {[%clk 0:01:24.3]}
20. bxc3 {[%clk 0:02:01.4]} 20... f5 {[%clk 0:01:24.5]} 21. Re1 {[%clk
0:01:59.7]} 21... Rce8 {[%clk 0:01:23.2]} 22. Qb2 {[%clk 0:01:55.3]} 22... Re6
{[%clk 0:01:20.9]} 23. Re2 {[%clk 0:01:48.6]} 23... Rfe8 {[%clk 0:01:19.7]} 24.
Rce1 {[%clk 0:01:49]} 24... Qe7 {[%clk 0:01:18.2]} 25. Qb4 {[%clk 0:01:44.6]}
25... Qg5 {[%clk 0:01:13.9]} 26. Kf2 {[%clk 0:01:34.4]} 26... h5 {[%clk
0:01:05.2]} 27. a4 {[%clk 0:01:31.7]} 27... Bc6 {[%clk 0:01:03]} 28. axb5 {[%clk
0:01:27]} 28... axb5 {[%clk 0:01:03.9]} 29. Qc5 {[%clk 0:01:24.6]} 29... h4
{[%clk 0:01:02.8]} 30. Qa7 {[%clk 0:01:15.1]} 30... Qg3+ {[%clk 0:00:59.8]} 31.
Kg1 {[%clk 0:01:14.5]} 31... R8e7 {[%clk 0:00:59.6]} 32. Qa3 {[%clk 0:01:09.4]}
32... Qg5 {[%clk 0:00:54.7]} 33. Kf2 {[%clk 0:01:08.5]} 33... Qg3+ {[%clk
0:00:54]} 34. Kg1 {[%clk 0:01:08.7]} 34... g5 {[%clk 0:00:54.7]} 35. Ra1 {[%clk
0:01:00]} 35... g4 {[%clk 0:00:49.5]} 36. fxg4 {[%clk 0:00:43.4]} 36... fxg4
{[%clk 0:00:48.1]} 37. e4 {[%clk 0:00:41]} 37... dxe4 {[%clk 0:00:41.5]} 38. Qc5
{[%clk 0:00:37.4]} 38... gxh3 {[%clk 0:00:21.9]} 39. d5 {[%clk 0:00:36.9]} 39...
Qe5 {[%clk 0:00:19.5]} 40. Rd1 {[%clk 0:00:35.5]} 40... Rd7 {[%clk 0:00:19.5]}
41. gxh3 {[%clk 0:00:20.1]} 41... Rxd5 {[%clk 0:00:17.4]} 42. Rg2+ {[%clk
0:00:19.5]} 42... Kf7 {[%clk 0:00:17.1]} 43. Rxd5 {[%clk 0:00:19.4]} 43... Qxd5
{[%clk 0:00:16.7]} 44. Qa7+ {[%clk 0:00:19]} 44... Qd7 {[%clk 0:00:16.3]} 45.
Qf2+ {[%clk 0:00:17.5]} 45... Rf6 {[%clk 0:00:16.8]} 46. Qxh4 {[%clk 0:00:17.4]}
46... Qf5 {[%clk 0:00:17]} 47. Be2 {[%clk 0:00:15.9]} 47... e3 {[%clk
0:00:16.4]} 48. Bh5+ {[%clk 0:00:08]} 48... Kf8 {[%clk 0:00:14.6]} 49. Qd4
{[%clk 0:00:05.6]} 49... Qf1+ {[%clk 0:00:13.6]} 50. Kh2 {[%clk 0:00:05.2]}
50... Qxg2# {[%clk 0:00:14.5]} 0-1

[Event "*** Titled Tuesday Blitz"]
[Site "Chess.com"]
[Date "2020.04.14"]
[Round "5"]
[White "Jojo_1608"]
[Black "Alopekos"]
[Result "0-1"]
[WhiteElo "2232"]
[BlackElo "2426"]
[TimeControl "180+1"]
[EndTime "10:51:37 PDT"]
[Termination "Alopekos won by resignation"]

1. d4 {[%clk 0:02:50]} 1... Nf6 {[%clk 0:02:57.9]} 2. c4 {[%clk 0:02:50.2]} 2...
e6 {[%clk 0:02:56.4]} 3. Nc3 {[%clk 0:02:50.5]} 3... d5 {[%clk 0:02:55.8]} 4. e3
{[%clk 0:02:51.4]} 4... c5 {[%clk 0:02:53.6]} 5. Nf3 {[%clk 0:02:50.5]} 5... Nc6
{[%clk 0:02:53.9]} 6. dxc5 {[%clk 0:02:46.6]} 6... Bxc5 {[%clk 0:02:53.5]} 7.
cxd5 {[%clk 0:02:46.7]} 7... exd5 {[%clk 0:02:52.1]} 8. Be2 {[%clk 0:02:43.3]}
8... O-O {[%clk 0:02:52.1]} 9. O-O {[%clk 0:02:43.2]} 9... Re8 {[%clk
0:02:46.1]} 10. Nd4 {[%clk 0:02:41.9]} 10... h6 {[%clk 0:02:25.6]} 11. Bf3
{[%clk 0:02:41.3]} 11... Ne5 {[%clk 0:02:24.3]} 12. Be2 {[%clk 0:02:29.9]} 12...
a6 {[%clk 0:02:20.7]} 13. b3 {[%clk 0:02:29.4]} 13... Bd6 {[%clk 0:02:06.9]} 14.
Bb2 {[%clk 0:02:28.9]} 14... Neg4 {[%clk 0:02:03.1]} 15. h3 {[%clk 0:02:25.6]}
15... Ne5 {[%clk 0:01:41.5]} 16. Qc2 {[%clk 0:02:06.7]} 16... Bb8 {[%clk
0:01:31.6]} 17. Rad1 {[%clk 0:02:05.1]} 17... Qd6 {[%clk 0:01:30]} 18. f4 {[%clk
0:01:47.3]} 18... Nc6 {[%clk 0:01:29.7]} 19. Nxc6 {[%clk 0:01:32.8]} 19... bxc6
{[%clk 0:01:28.5]} 20. Bc1 {[%clk 0:01:23.6]} 20... Ba7 {[%clk 0:01:25.2]} 21.
Rf3 {[%clk 0:01:15.9]} 21... Bb7 {[%clk 0:01:17.2]} 22. Kh1 {[%clk 0:01:09.3]}
22... Re6 {[%clk 0:00:55.6]} 23. e4 {[%clk 0:01:07.6]} 23... Nxe4 {[%clk
0:00:53.3]} 24. Nxe4 {[%clk 0:01:06.8]} 24... Rxe4 {[%clk 0:00:50.9]} 25. Qxe4
{[%clk 0:01:05.5]} 25... dxe4 {[%clk 0:00:51.6]} 26. Rxd6 {[%clk 0:01:05]} 26...
exf3 {[%clk 0:00:52.5]} 27. Bxf3 {[%clk 0:01:05.1]} 27... Re8 {[%clk 0:00:43.2]}
28. Bb2 {[%clk 0:01:00]} 28... Bb8 {[%clk 0:00:32.1]} 29. Rd7 {[%clk 0:00:54.4]}
29... Bxf4 {[%clk 0:00:20.1]} 30. Bc3 {[%clk 0:00:36.5]} 30... Bc8 {[%clk
0:00:16.1]} 31. Rd1 {[%clk 0:00:36.1]} 31... Bf5 {[%clk 0:00:08.2]} 32. Bxc6
{[%clk 0:00:33.6]} 32... Re3 {[%clk 0:00:03.3]} 33. Bd2 {[%clk 0:00:30.5]} 33...
Rd3 {[%clk 0:00:03.6]} 34. Bxf4 {[%clk 0:00:24.8]} 34... Rxd1+ {[%clk
0:00:03.4]} 35. Kh2 {[%clk 0:00:24.9]} 35... Ra1 {[%clk 0:00:02.9]} 36. a4
{[%clk 0:00:23]} 36... Bc2 {[%clk 0:00:03.3]} 37. Bb7 {[%clk 0:00:22.9]} 37...
Bxb3 {[%clk 0:00:02.7]} 38. Bxa6 {[%clk 0:00:22.8]} 38... Rxa4 {[%clk
0:00:03.3]} 39. Bb5 {[%clk 0:00:19.7]} 39... Rxf4 {[%clk 0:00:03.2]} 40. Kg3
{[%clk 0:00:20.6]} 40... g5 {[%clk 0:00:03.1]} 41. h4 {[%clk 0:00:20.5]} 41...
Rxh4 {[%clk 0:00:02.2]} 42. Be2 {[%clk 0:00:21.4]} 42... Rf4 {[%clk 0:00:02.6]}
43. Bf3 {[%clk 0:00:22.3]} 43... Be6 {[%clk 0:00:03.4]} 44. Bg4 {[%clk
0:00:22.8]} 44... Kg7 {[%clk 0:00:04.3]} 45. Bf3 {[%clk 0:00:23.7]} 45... Kf6
{[%clk 0:00:04.6]} 46. Be2 {[%clk 0:00:23.8]} 46... Ke5 {[%clk 0:00:05]} 47. Bf3
{[%clk 0:00:23.7]} 47... f5 {[%clk 0:00:05.5]} 48. Be2 {[%clk 0:00:23.6]} 48...
Bd5 {[%clk 0:00:06]} 0-1

[Event "*** Titled Tuesday Blitz"]
[Site "Chess.com"]
[Date "2020.04.14"]
[Round "5"]
[White "Szczor"]
[Black "Oligan22"]
[Result "0-1"]
[WhiteElo "2562"]
[BlackElo "2404"]
[TimeControl "180+1"]
[EndTime "10:51:39 PDT"]
[Termination "Oligan22 won by resignation"]

1. e4 {[%clk 0:03:00.9]} 1... c6 {[%clk 0:02:59.6]} 2. d4 {[%clk 0:03:00.2]}
2... d5 {[%clk 0:02:59.8]} 3. Nc3 {[%clk 0:03:00.7]} 3... dxe4 {[%clk
0:02:59.5]} 4. Nxe4 {[%clk 0:03:01.6]} 4... Nf6 {[%clk 0:03:00.2]} 5. Nxf6+
{[%clk 0:03:00.7]} 5... exf6 {[%clk 0:03:01.1]} 6. Nf3 {[%clk 0:03:01]} 6... Bd6
{[%clk 0:03:01.4]} 7. Be2 {[%clk 0:03:01.5]} 7... O-O {[%clk 0:03:01.6]} 8. O-O
{[%clk 0:03:02.1]} 8... Nd7 {[%clk 0:03:00.2]} 9. Re1 {[%clk 0:03:02.5]} 9...
Re8 {[%clk 0:02:59.7]} 10. b3 {[%clk 0:03:02.8]} 10... Nf8 {[%clk 0:02:50.9]}
11. a4 {[%clk 0:02:58.8]} 11... Be6 {[%clk 0:02:44]} 12. Ba3 {[%clk 0:02:57.6]}
12... Ng6 {[%clk 0:02:40.9]} 13. Bxd6 {[%clk 0:02:56.4]} 13... Qxd6 {[%clk
0:02:41.8]} 14. Qd2 {[%clk 0:02:55.6]} 14... Nf4 {[%clk 0:02:37.5]} 15. Bf1
{[%clk 0:02:22]} 15... Bg4 {[%clk 0:02:24.5]} 16. Rxe8+ {[%clk 0:02:21.7]} 16...
Rxe8 {[%clk 0:02:23.6]} 17. Re1 {[%clk 0:02:22.2]} 17... Rd8 {[%clk 0:02:13.8]}
18. Re4 {[%clk 0:01:37]} 18... g5 {[%clk 0:02:10.5]} 19. Qe3 {[%clk 0:01:34]}
19... Kg7 {[%clk 0:01:55.4]} 20. c4 {[%clk 0:01:20.6]} 20... f5 {[%clk
0:01:54.2]} 21. Re5 {[%clk 0:01:14.7]} 21... Qf6 {[%clk 0:01:22.1]} 22. Ne1
{[%clk 0:00:44.4]} 22... Ng6 {[%clk 0:01:17.1]} 23. Ra5 {[%clk 0:00:38.1]} 23...
a6 {[%clk 0:01:08.4]} 24. h3 {[%clk 0:00:36.8]} 24... f4 {[%clk 0:01:05.2]} 25.
Qc3 {[%clk 0:00:28.8]} 25... Bf5 {[%clk 0:00:56.5]} 26. Nf3 {[%clk 0:00:28.9]}
26... h5 {[%clk 0:00:53]} 27. Bd3 {[%clk 0:00:28.6]} 27... Bxd3 {[%clk
0:00:51.6]} 28. Qxd3 {[%clk 0:00:29.5]} 28... g4 {[%clk 0:00:52.2]} 29. hxg4
{[%clk 0:00:27.6]} 29... hxg4 {[%clk 0:00:53.1]} 30. Nh2 {[%clk 0:00:26.3]}
30... Rxd4 {[%clk 0:00:51.6]} 31. Qe2 {[%clk 0:00:25.6]} 31... f3 {[%clk
0:00:41]} 32. gxf3 {[%clk 0:00:24.3]} 32... Nf4 {[%clk 0:00:35]} 33. Qe5 {[%clk
0:00:13.6]} 33... Rd1+ {[%clk 0:00:33.9]} 34. Nf1 {[%clk 0:00:13.7]} 34... Qxe5
{[%clk 0:00:28.4]} 35. Rxe5 {[%clk 0:00:14.6]} 35... gxf3 {[%clk 0:00:28.8]} 36.
Kh2 {[%clk 0:00:09.1]} 36... Rxf1 {[%clk 0:00:27.9]} 37. Kg3 {[%clk 0:00:10]}
37... Ng6 {[%clk 0:00:28]} 38. Re3 {[%clk 0:00:03.9]} 38... Kf6 {[%clk
0:00:25.7]} 39. Kxf3 {[%clk 0:00:04.1]} 39... Ne5+ {[%clk 0:00:25.7]} 40. Ke4
{[%clk 0:00:03.8]} 40... Rxf2 {[%clk 0:00:24.3]} 41. Rc3 {[%clk 0:00:03.8]}
41... Re2+ {[%clk 0:00:23.4]} 42. Kd4 {[%clk 0:00:04]} 42... b6 {[%clk
0:00:23.8]} 43. c5 {[%clk 0:00:04.2]} 43... b5 {[%clk 0:00:22.9]} 44. axb5
{[%clk 0:00:05.1]} 44... axb5 {[%clk 0:00:23.7]} 45. b4 {[%clk 0:00:05.5]} 45...
Ke6 {[%clk 0:00:21.7]} 46. Rh3 {[%clk 0:00:05]} 46... Rd2+ {[%clk 0:00:20.3]}
47. Kc3 {[%clk 0:00:04.9]} 47... Rd1 {[%clk 0:00:20.5]} 48. Rh6+ {[%clk
0:00:04.9]} 48... Kd5 {[%clk 0:00:19.5]} 49. Rh8 {[%clk 0:00:05.8]} 49... Rd3+
{[%clk 0:00:19.6]} 50. Kc2 {[%clk 0:00:05.9]} 50... Kc4 {[%clk 0:00:20]} 51. Rc8
{[%clk 0:00:05.8]} 51... Kxb4 {[%clk 0:00:19.5]} 52. Re8 {[%clk 0:00:06.7]}
52... Rc3+ {[%clk 0:00:17.9]} 53. Kd2 {[%clk 0:00:06.5]} 53... f6 {[%clk
0:00:18.8]} 54. Rxe5 {[%clk 0:00:05.8]} 54... fxe5 {[%clk 0:00:18.4]} 0-1

[Event "*** Titled Tuesday Blitz"]
[Site "Chess.com"]
[Date "2020.04.14"]
[Round "5"]
[White "vanea_03"]
[Black "Abdimalik_Abdisalimov"]
[Result "0-1"]
[WhiteElo "2613"]
[BlackElo "2801"]
[TimeControl "180+1"]
[EndTime "10:51:41 PDT"]
[Termination "Abdimalik_Abdisalimov won by resignation"]

1. d4 {[%clk 0:03:00.9]} 1... Nf6 {[%clk 0:02:57.7]} 2. c4 {[%clk 0:03:01.3]}
2... g6 {[%clk 0:02:57.5]} 3. Nc3 {[%clk 0:02:57.5]} 3... Bg7 {[%clk 0:02:57.7]}
4. e4 {[%clk 0:02:58]} 4... d6 {[%clk 0:02:56.9]} 5. Nge2 {[%clk 0:02:57.2]}
5... O-O {[%clk 0:02:51.9]} 6. Ng3 {[%clk 0:02:57]} 6... Nc6 {[%clk 0:02:51.7]}
7. d5 {[%clk 0:02:56.5]} 7... Ne5 {[%clk 0:02:48.6]} 8. Be2 {[%clk 0:02:56.8]}
8... a5 {[%clk 0:02:38.4]} 9. O-O {[%clk 0:02:54.2]} 9... c6 {[%clk 0:02:30.4]}
10. h3 {[%clk 0:02:43.3]} 10... Ned7 {[%clk 0:02:22.7]} 11. Be3 {[%clk
0:02:41.5]} 11... Nc5 {[%clk 0:02:19.5]} 12. dxc6 {[%clk 0:02:09.9]} 12... bxc6
{[%clk 0:02:14.6]} 13. Bxc5 {[%clk 0:02:02.3]} 13... dxc5 {[%clk 0:02:13.8]} 14.
Qxd8 {[%clk 0:02:02.9]} 14... Rxd8 {[%clk 0:02:14.7]} 15. e5 {[%clk 0:02:03.5]}
15... Nd7 {[%clk 0:02:06.9]} 16. f4 {[%clk 0:02:03.8]} 16... g5 {[%clk
0:02:07.4]} 17. Nf5 {[%clk 0:01:56.7]} 17... Bf8 {[%clk 0:02:00.9]} 18. g3
{[%clk 0:01:44]} 18... Nb6 {[%clk 0:01:44.9]} 19. fxg5 {[%clk 0:01:26.1]} 19...
Rd2 {[%clk 0:01:44.8]} 20. Rad1 {[%clk 0:01:14.6]} 20... Rxb2 {[%clk 0:01:44.1]}
21. Bh5 {[%clk 0:00:57.9]} 21... Be6 {[%clk 0:01:38]} 22. Ne4 {[%clk 0:00:41.7]}
22... Bxc4 {[%clk 0:01:37.9]} 23. Rfe1 {[%clk 0:00:41.2]} 23... Be6 {[%clk
0:01:25.5]} 24. g4 {[%clk 0:00:40.3]} 24... c4 {[%clk 0:01:23.2]} 25. Nc5 {[%clk
0:00:40.1]} 25... Bd5 {[%clk 0:01:21.9]} 26. e6 {[%clk 0:00:36.3]} 26... fxe6
{[%clk 0:01:17.7]} 27. Nxe6 {[%clk 0:00:37.2]} 27... Ra7 {[%clk 0:01:13.8]} 28.
Nf4 {[%clk 0:00:35.3]} 28... c3 {[%clk 0:01:07.7]} 29. g6 {[%clk 0:00:24.9]}
29... c2 {[%clk 0:01:04.1]} 30. Rc1 {[%clk 0:00:24.2]} 30... hxg6 {[%clk
0:00:47.2]} 31. Bxg6 {[%clk 0:00:25.1]} 31... Nc4 {[%clk 0:00:39.1]} 32. Nxd5
{[%clk 0:00:17.8]} 32... cxd5 {[%clk 0:00:39.5]} 33. Nd4 {[%clk 0:00:17.3]}
33... e5 {[%clk 0:00:34.5]} 34. Nc6 {[%clk 0:00:15.7]} 34... Bc5+ {[%clk
0:00:31.4]} 35. Kh1 {[%clk 0:00:13.3]} 35... e4 {[%clk 0:00:20.2]} 36. Nxa7
{[%clk 0:00:11.8]} 36... Bxa7 {[%clk 0:00:20.6]} 37. Re2 {[%clk 0:00:09.9]}
37... Na3 {[%clk 0:00:13.5]} 38. Kh2 {[%clk 0:00:06.5]} 38... Kg7 {[%clk
0:00:12.3]} 39. Be8 {[%clk 0:00:05.9]} 39... Bb8+ {[%clk 0:00:11.9]} 40. Kg2
{[%clk 0:00:05.3]} 40... Bf4 {[%clk 0:00:12.8]} 41. Rf1 {[%clk 0:00:03.5]} 41...
c1=Q {[%clk 0:00:11.3]} 0-1

[Event "*** Titled Tuesday Blitz"]
[Site "Chess.com"]
[Date "2020.04.14"]
[Round "5"]
[White "TheCount"]
[Black "fmshawnrl123"]
[Result "1/2-1/2"]
[WhiteElo "2603"]
[BlackElo "2766"]
[TimeControl "180+1"]
[EndTime "10:51:41 PDT"]
[Termination "Game drawn - insufficient material"]

1. e4 {[%clk 0:03:00.9]} 1... c6 {[%clk 0:02:59.9]} 2. d4 {[%clk 0:02:57.1]}
2... d5 {[%clk 0:03:00.8]} 3. e5 {[%clk 0:02:57.6]} 3... Bf5 {[%clk 0:03:00.7]}
4. Nf3 {[%clk 0:02:57]} 4... e6 {[%clk 0:03:00.7]} 5. Be2 {[%clk 0:02:55.3]}
5... Bb4+ {[%clk 0:02:59.9]} 6. Nbd2 {[%clk 0:02:54.4]} 6... Ba5 {[%clk
0:03:00.8]} 7. O-O {[%clk 0:02:53.9]} 7... Nd7 {[%clk 0:03:00.1]} 8. Nb3 {[%clk
0:02:53.5]} 8... Bc7 {[%clk 0:03:00.1]} 9. a4 {[%clk 0:02:52.9]} 9... f6 {[%clk
0:02:59.9]} 10. Bf4 {[%clk 0:02:08.2]} 10... Ne7 {[%clk 0:02:56.6]} 11. Bg3
{[%clk 0:01:48]} 11... Ng6 {[%clk 0:02:53.1]} 12. exf6 {[%clk 0:01:47.6]} 12...
Nxf6 {[%clk 0:02:54]} 13. Nc5 {[%clk 0:01:45]} 13... b6 {[%clk 0:02:49.7]} 14.
Nd3 {[%clk 0:01:38.9]} 14... O-O {[%clk 0:02:46.3]} 15. a5 {[%clk 0:01:37.8]}
15... Ne4 {[%clk 0:02:31.5]} 16. axb6 {[%clk 0:01:34.1]} 16... Bxg3 {[%clk
0:02:30.6]} 17. hxg3 {[%clk 0:01:23.4]} 17... axb6 {[%clk 0:02:28.5]} 18. Nfe5
{[%clk 0:01:22.6]} 18... Qc7 {[%clk 0:02:20.5]} 19. Rxa8 {[%clk 0:01:14.9]}
19... Rxa8 {[%clk 0:02:21.4]} 20. g4 {[%clk 0:01:15]} 20... Nxe5 {[%clk
0:02:21.3]} 21. Nxe5 {[%clk 0:01:14.4]} 21... Bg6 {[%clk 0:02:19.6]} 22. Bd3
{[%clk 0:01:06.7]} 22... c5 {[%clk 0:02:11.9]} 23. Nxg6 {[%clk 0:00:56]} 23...
hxg6 {[%clk 0:02:11.5]} 24. Bxe4 {[%clk 0:00:55.1]} 24... dxe4 {[%clk
0:02:12.4]} 25. dxc5 {[%clk 0:00:51.9]} 25... Qxc5 {[%clk 0:02:02.6]} 26. Qe2
{[%clk 0:00:49]} 26... Qe5 {[%clk 0:01:58.2]} 27. b3 {[%clk 0:00:41.1]} 27...
Rf8 {[%clk 0:01:54.8]} 28. Re1 {[%clk 0:00:36.8]} 28... Qc5 {[%clk 0:01:47]} 29.
Rd1 {[%clk 0:00:23.6]} 29... g5 {[%clk 0:01:40.7]} 30. c4 {[%clk 0:00:20.9]}
30... Rf4 {[%clk 0:01:39.1]} 31. Rd8+ {[%clk 0:00:18.1]} 31... Kf7 {[%clk
0:01:33.9]} 32. Rd7+ {[%clk 0:00:17.5]} 32... Kg8 {[%clk 0:01:21.9]} 33. Rd8+
{[%clk 0:00:13.3]} 33... Kf7 {[%clk 0:01:21.7]} 34. Rd7+ {[%clk 0:00:13.6]}
34... Kf8 {[%clk 0:01:14.2]} 35. Qe3 {[%clk 0:00:12.8]} 35... Qc6 {[%clk
0:00:41.4]} 36. Qd4 {[%clk 0:00:09.8]} 36... Rf6 {[%clk 0:00:37]} 37. Rd6 {[%clk
0:00:05.6]} 37... Qc7 {[%clk 0:00:34.2]} 38. Qxb6 {[%clk 0:00:05]} 38... Qe7
{[%clk 0:00:29.9]} 39. Qc6 {[%clk 0:00:03.3]} 39... Kg8 {[%clk 0:00:25.9]} 40.
Qd7 {[%clk 0:00:01.8]} 40... Kf7 {[%clk 0:00:14.1]} 41. Qxe7+ {[%clk 0:00:01.9]}
41... Kxe7 {[%clk 0:00:15]} 42. Rc6 {[%clk 0:00:02.5]} 42... Rf4 {[%clk
0:00:14.2]} 43. g3 {[%clk 0:00:03]} 43... Rxg4 {[%clk 0:00:14.1]} 44. Kg2 {[%clk
0:00:03.4]} 44... e3 {[%clk 0:00:14]} 45. f3 {[%clk 0:00:02.6]} 45... Rd4 {[%clk
0:00:12.7]} 46. Kf1 {[%clk 0:00:02.5]} 46... Rd2 {[%clk 0:00:12.9]} 47. Rc7+
{[%clk 0:00:02.8]} 47... Kd6 {[%clk 0:00:11]} 48. Rxg7 {[%clk 0:00:02.5]} 48...
Rf2+ {[%clk 0:00:07.1]} 49. Ke1 {[%clk 0:00:02.2]} 49... Rxf3 {[%clk 0:00:08]}
50. Rxg5 {[%clk 0:00:02.2]} 50... Rf2 {[%clk 0:00:05]} 51. c5+ {[%clk
0:00:02.8]} 51... Kc6 {[%clk 0:00:05]} 52. Re5 {[%clk 0:00:03.7]} 52... Rf3
{[%clk 0:00:03.3]} 53. Ke2 {[%clk 0:00:03.6]} 53... Rxg3 {[%clk 0:00:03.4]} 54.
Rxe6+ {[%clk 0:00:04]} 54... Kxc5 {[%clk 0:00:03.3]} 55. Rxe3 {[%clk 0:00:04.9]}
55... Rxe3+ {[%clk 0:00:03.3]} 56. Kxe3 {[%clk 0:00:05.8]} 56... Kb4 {[%clk
0:00:04]} 57. Kd2 {[%clk 0:00:06.3]} 57... Kxb3 {[%clk 0:00:04.9]} 1/2-1/2

[Event "*** Titled Tuesday Blitz"]
[Site "Chess.com"]
[Date "2020.04.14"]
[Round "5"]
[White "Olga_Zhuravleva"]
[Black "steepedgames"]
[Result "1-0"]
[WhiteElo "2240"]
[BlackElo "2423"]
[TimeControl "180+1"]
[EndTime "10:51:42 PDT"]
[Termination "Olga_Zhuravleva won by checkmate"]

1. e4 {[%clk 0:03:00.9]} 1... e6 {[%clk 0:03:00]} 2. d4 {[%clk 0:03:00.2]} 2...
d5 {[%clk 0:03:00.9]} 3. Nd2 {[%clk 0:02:59]} 3... Nf6 {[%clk 0:03:01]} 4. e5
{[%clk 0:02:58.8]} 4... Nfd7 {[%clk 0:03:01.3]} 5. Bd3 {[%clk 0:02:58.4]} 5...
c5 {[%clk 0:03:01]} 6. c3 {[%clk 0:02:58.8]} 6... b6 {[%clk 0:03:01.6]} 7. Ne2
{[%clk 0:02:57.9]} 7... Ba6 {[%clk 0:03:02.1]} 8. Bc2 {[%clk 0:02:54.5]} 8...
Nc6 {[%clk 0:02:59.8]} 9. Nf3 {[%clk 0:02:52.9]} 9... Be7 {[%clk 0:02:56.4]} 10.
O-O {[%clk 0:02:52]} 10... O-O {[%clk 0:02:54.5]} 11. Re1 {[%clk 0:02:51.9]}
11... Bxe2 {[%clk 0:02:34.3]} 12. Qxe2 {[%clk 0:02:49.2]} 12... a6 {[%clk
0:02:24.3]} 13. a4 {[%clk 0:02:48.3]} 13... Qb8 {[%clk 0:02:22.9]} 14. Qd3
{[%clk 0:02:34.6]} 14... g6 {[%clk 0:02:20.8]} 15. Bh6 {[%clk 0:02:35]} 15...
Re8 {[%clk 0:02:10.1]} 16. Ng5 {[%clk 0:02:33.9]} 16... cxd4 {[%clk 0:01:57.5]}
17. cxd4 {[%clk 0:02:15.9]} 17... Nb4 {[%clk 0:01:55.3]} 18. Qd2 {[%clk
0:02:16.1]} 18... Nxc2 {[%clk 0:01:53.8]} 19. Qxc2 {[%clk 0:02:17]} 19... b5
{[%clk 0:01:33.1]} 20. axb5 {[%clk 0:02:11.8]} 20... Qxb5 {[%clk 0:01:32.6]} 21.
h4 {[%clk 0:02:09.8]} 21... Reb8 {[%clk 0:01:29]} 22. Rab1 {[%clk 0:02:07.8]}
22... Qc4 {[%clk 0:01:15.8]} 23. Qd2 {[%clk 0:01:58.5]} 23... Rb4 {[%clk
0:00:59.3]} 24. Nf3 {[%clk 0:01:48.5]} 24... Rab8 {[%clk 0:00:49.5]} 25. Rec1
{[%clk 0:01:31.9]} 25... Qb5 {[%clk 0:00:49.4]} 26. Rc7 {[%clk 0:01:25.3]} 26...
Bd8 {[%clk 0:00:42.3]} 27. Rc2 {[%clk 0:01:19.2]} 27... a5 {[%clk 0:00:42.4]}
28. h5 {[%clk 0:00:56.5]} 28... a4 {[%clk 0:00:41.5]} 29. hxg6 {[%clk
0:00:56.3]} 29... hxg6 {[%clk 0:00:41.5]} 30. Qe3 {[%clk 0:00:26.4]} 30... Rb3
{[%clk 0:00:37]} 31. Qf4 {[%clk 0:00:25.7]} 31... Qd3 {[%clk 0:00:37]} 32. Rbc1
{[%clk 0:00:20.7]} 32... Rxb2 {[%clk 0:00:33.4]} 33. Rc8 {[%clk 0:00:20.8]}
33... Qf5 {[%clk 0:00:31.8]} 34. Qh4 {[%clk 0:00:19.5]} 34... g5 {[%clk
0:00:20.3]} 35. Bxg5 {[%clk 0:00:17.8]} 35... Qh7 {[%clk 0:00:20.3]} 36. Qxh7+
{[%clk 0:00:17.2]} 36... Kxh7 {[%clk 0:00:21.2]} 37. Bxd8 {[%clk 0:00:17.6]}
37... a3 {[%clk 0:00:20.7]} 38. Ra1 {[%clk 0:00:13.8]} 38... a2 {[%clk
0:00:19.7]} 39. Rxb8 {[%clk 0:00:13.4]} 39... Rxb8 {[%clk 0:00:20.3]} 40. Rxa2
{[%clk 0:00:12.6]} 40... Rxd8 {[%clk 0:00:20.8]} 41. Ra7 {[%clk 0:00:12.5]}
41... Kg6 {[%clk 0:00:21.3]} 42. g3 {[%clk 0:00:12.6]} 42... f6 {[%clk
0:00:21.3]} 43. Kg2 {[%clk 0:00:13.2]} 43... fxe5 {[%clk 0:00:21.4]} 44. Rxd7
{[%clk 0:00:12.9]} 44... Re8 {[%clk 0:00:19]} 45. Nxe5+ {[%clk 0:00:13.1]} 45...
Kf5 {[%clk 0:00:19.5]} 46. Kf3 {[%clk 0:00:11.9]} 46... Kf6 {[%clk 0:00:17.7]}
47. Rf7+ {[%clk 0:00:11]} 47... Kg5 {[%clk 0:00:18.2]} 48. Kg2 {[%clk
0:00:10.7]} 48... Rb8 {[%clk 0:00:16.8]} 49. f4+ {[%clk 0:00:11.2]} 49... Kh6
{[%clk 0:00:17.3]} 50. Kf3 {[%clk 0:00:11.6]} 50... Rb3+ {[%clk 0:00:16.7]} 51.
Kg4 {[%clk 0:00:12.1]} 51... Re3 {[%clk 0:00:14.6]} 52. Rf6+ {[%clk 0:00:12.4]}
52... Kg7 {[%clk 0:00:15.1]} 53. Rxe6 {[%clk 0:00:12.9]} 53... Re4 {[%clk
0:00:14.7]} 54. Kf5 {[%clk 0:00:12]} 54... Kf8 {[%clk 0:00:14.6]} 55. g4 {[%clk
0:00:12.4]} 55... Rxd4 {[%clk 0:00:15]} 56. g5 {[%clk 0:00:12.6]} 56... Rd1
{[%clk 0:00:13.9]} 57. g6 {[%clk 0:00:12.9]} 57... d4 {[%clk 0:00:14.3]} 58. Kf6
{[%clk 0:00:13.4]} 58... Rg1 {[%clk 0:00:13]} 59. Nd7+ {[%clk 0:00:14]} 59...
Kg8 {[%clk 0:00:13]} 60. Re8# {[%clk 0:00:14.7]} 1-0